fUSD/lending_fUSD_20250622
["ID","MTS","AMOUNT","RATE_DAILY","PERIOD"]
[367044538,1750635059001,-490.0,0.00035616,15]
[367044539,1750635059010,-490.0,0.00035616,15]
[367044540,1750635059020,-490.0,0.00035616,15]
[367044541,1750635059029,-490.0,0.00035616,15]
[367044542,1750635059038,-490.0,0.00035616,15]
[367044543,1750635059048,-656.25,0.00035616,15]
[367044544,1750635059058,-1025.56,0.00035616,15]
[367044545,1750635059067,-490.0,0.00035616,15]
[367044546,1750635059076,-490.0,0.00035616,15]
[367044547,1750635059085,-490.0,0.00035616,15]
[367044548,1750635059094,-490.0,0.00035616,15]
[367044549,1750635059103,-490.0,0.00035616,15]
[367044550,1750635059113,-520.95,0.00035616,15]
[367044551,1750635059122,-490.0,0.00035616,15]
[367044552,1750635059131,-490.0,0.00035616,15]
[367044553,1750635059141,-490.0,0.00035616,15]
[367044554,1750635059150,-490.0,0.00035616,2]
[367044555,1750635059159,-490.0,0.00035616,15]
[367044556,1750635059168,-503.15,0.00035616,15]
[367044557,1750635059177,-490.0,0.00035616,15]
[367044558,1750635059187,-490.0,0.00035616,15]
[367044559,1750635059197,-1623.67,0.00035616,15]
[367044560,1750635059206,-490.0,0.00035616,15]
[367044561,1750635059215,-1985.45,0.00035616,15]
[367044562,1750635059225,-490.0,0.00035616,2]
[367044563,1750635059234,-768.99,0.00035616,15]
[367044564,1750635059243,-490.0,0.00035616,15]
[367044565,1750635059253,-490.0,0.00035616,15]
[367044566,1750635059262,-490.0,0.00035616,15]
[367044567,1750635059271,-490.0,0.00035616,15]
[367044568,1750635059280,-210.0,0.00035616,15]
[367044569,1750635059289,-1842.91,0.00035616,15]
[367044570,1750635059298,-537.15,0.00035616,15]
[367044571,1750635059308,-490.0,0.00035616,15]
[367044572,1750635059317,-490.0,0.00035616,15]
[367044573,1750635059327,-490.0,0.00035616,15]
[367044574,1750635059336,-214.99382493,0.00035616,15]
[367044575,1750635059347,-1223.81,0.00035616,15]
[367044576,1750635059357,-490.0,0.00035616,15]
[367044577,1750635059367,-490.0,0.00035616,15]
[367044578,1750635059376,-490.0,0.00035616,15]
[367044579,1750635059385,-1744.39,0.00035616,15]
[367044580,1750635059394,-490.0,0.00035616,15]
[367044581,1750635059404,-490.0,0.00035616,15]
[367044582,1750635059413,-1819.17,0.00035616,15]
[367044583,1750635059422,-490.0,0.00035616,15]
[367044584,1750635059432,-490.0,0.00035616,15]
[367044585,1750635059442,-490.0,0.00035616,15]
[367044586,1750635059451,-490.0,0.00035616,15]
[367044587,1750635059460,-490.0,0.00035616,15]
[367044588,1750635059470,-490.0,0.00035616,15]
[367044589,1750635059479,-490.0,0.00035616,15]
[367044590,1750635059489,-495.13645917,0.00035616,15]
[367044591,1750635059499,-490.0,0.00035616,15]
[367044592,1750635059509,-1796.74,0.00035616,15]
[367044593,1750635059518,-490.0,0.00035616,15]
[367044594,1750635059529,-490.0,0.00035616,15]
[367044595,1750635059539,-490.0,0.00035616,15]
[367044596,1750635059549,-490.0,0.00035616,15]
[367044597,1750635059558,-246.23396338,0.00035616,15]
[367044598,1750635059569,-490.0,0.00035616,15]
[367044599,1750635059579,-210.0,0.00035616,15]
[367044600,1750635059588,-490.0,0.00035616,15]
[367044601,1750635059597,-490.0,0.00035616,15]
[367044602,1750635059607,-490.0,0.00035616,15]
[367044603,1750635059617,-490.0,0.00035616,15]
[367044604,1750635059626,-1529.96,0.00035616,15]
[367044605,1750635059636,-6801.206558,0.00035616,15]
[367044606,1750635059645,-850.24,0.00035616,15]
[367044607,1750635059654,-715.11,0.00035616,15]
[367044608,1750635059664,-490.0,0.00035616,15]
[367044609,1750635059674,-490.0,0.00035616,15]
[367044610,1750635059684,-490.0,0.00035616,15]
[367044611,1750635059695,-1147.99,0.00035616,15]
[367044612,1750635059704,-854.72,0.00035616,15]
[367044613,1750635059714,-1759.41,0.00035616,15]
[367044614,1750635059724,-394.17832197,0.00035616,15]
[367044615,1750635059734,-1060.13,0.00035616,15]
[367044616,1750635059743,-1219.63,0.00035616,15]
[367044617,1750635059754,-3678.68,0.00035616,15]
[367044618,1750635059764,-490.0,0.00035616,15]
[367044619,1750635059773,-490.0,0.00035616,15]
[367044620,1750635059783,-865.31,0.00035616,15]
[367044621,1750635059793,-490.0,0.00035616,15]
[367044622,1750635059802,-490.0,0.00035616,15]
[367044623,1750635059812,-490.0,0.00035616,15]
[367044624,1750635059822,-273.25989477,0.00035616,15]
[367044625,1750635059832,-490.0,0.00035616,15]
[367044626,1750635059842,-490.0,0.00035616,15]
[367044627,1750635059851,-490.0,0.00035616,15]
[367044628,1750635059861,-490.0,0.00035616,15]
[367044629,1750635059870,-973.75,0.00035616,15]
[367044630,1750635059880,-490.0,0.00035616,15]
[367044631,1750635059889,-490.0,0.00035616,15]
[367044632,1750635059898,-528.91,0.00035616,15]
[367044633,1750635059907,-490.0,0.00035616,15]
[367044634,1750635059918,-1712.78,0.00035616,15]
[367044635,1750635059927,-490.0,0.00035616,15]
[367044636,1750635059937,-490.0,0.00035616,15]
[367044637,1750635059946,-490.0,0.00035616,15]
[367044638,1750635059956,-490.0,0.00035616,15]
[367044639,1750635059966,-490.0,0.00035616,15]
[367044640,1750635059975,-490.0,0.00035616,15]
[367044641,1750635059984,-697.81,0.00035616,15]
[367044642,1750635059994,-930.13,0.00035616,15]
[367044643,1750635060003,-611.71,0.00035616,15]
[367044644,1750635060013,-708.21,0.00035616,15]
[367044645,1750635060022,-1495.23,0.00035616,15]
[367044646,1750635060033,-490.0,0.00035616,15]
[367044647,1750635060042,-490.0,0.00035616,15]
[367044648,1750635060053,-490.0,0.00035616,15]
[367044649,1750635060063,-734.38,0.00035616,15]
[367044650,1750635060073,-490.0,0.00035616,15]
[367044651,1750635060083,-490.0,0.00035616,15]
[367044652,1750635060093,-490.0,0.00035616,15]
[367044653,1750635060102,-500.0,0.00035616,15]
[367044654,1750635060112,-500.0,0.00035616,15]
[367044655,1750635060121,-500.0,0.00035616,15]
[367044656,1750635060131,-500.0,0.00035616,15]
[367044657,1750635060140,-500.0,0.00035616,15]
[367044658,1750635060150,-500.0,0.00035616,15]
[367044659,1750635060160,-500.0,0.00035616,15]
[367044660,1750635060169,-500.0,0.00035616,15]
[367044661,1750635060178,-490.0,0.00035616,15]
[367044662,1750635060187,-490.0,0.00035616,15]
[367044663,1750635060196,-500.0,0.00035616,15]
[367044664,1750635060206,-500.0,0.00035616,15]
[367044665,1750635060217,-837.98,0.00035616,15]
[367044666,1750635060226,-500.0,0.00035616,15]
[367044667,1750635060237,-500.0,0.00035616,15]
[367044668,1750635060246,-626.84159826,0.00035616,15]
[367044669,1750635060255,-490.0,0.00035616,15]
[367044670,1750635060268,-934.48,0.00035616,15]
[367044671,1750635060283,-1999.43,0.00035616,15]
[367044672,1750635060292,-977.8,0.00035616,15]
[367044673,1750635060302,-490.0,0.00035616,15]
[367044674,1750635060311,-1254.79,0.00035616,15]
[367044675,1750635060322,-490.0,0.00035616,15]
[367044676,1750635060331,-490.0,0.00035616,15]
[367044677,1750635060340,-1847.03,0.00035616,15]
[367044678,1750635060349,-1869.95,0.00035616,15]
[367044679,1750635060358,-490.0,0.00035616,15]
[367044680,1750635060367,-981.11,0.00035616,15]
[367044681,1750635060376,-192.95613348,0.00035616,15]
[367044682,1750635060386,-357.61130016,0.00035616,15]
[367044683,1750635060396,-490.0,0.00035616,15]
[367044684,1750635060416,-1417.24,0.00035616,15]
[367044685,1750635060426,-1391.68,0.00035616,15]
[367044686,1750635060435,-1525.48,0.00035616,15]
[367044687,1750635060444,-490.0,0.00035616,15]
[367044688,1750635060453,-490.0,0.00035616,15]
[367044689,1750635060462,-684.67,0.00035616,15]
[367044690,1750635060471,-490.0,0.00035616,15]
[367044691,1750635060480,-490.0,0.00035616,15]
[367044692,1750635060490,-607.56,0.00035616,15]
[367044693,1750635060499,-1883.67,0.00035616,15]
[367044694,1750635060509,-1386.94,0.00035616,15]
[367044695,1750635060518,-607.56,0.00035616,15]
[367044696,1750635060530,-875.12,0.00035616,15]
[367044697,1750635060539,-490.0,0.00035616,15]
[367044698,1750635060549,-490.0,0.00035616,15]
[367044699,1750635060559,-210.0,0.00035616,15]
[367044700,1750635060571,-490.0,0.00035616,15]
[367044701,1750635060580,-490.0,0.00035616,15]
[367044702,1750635060589,-490.0,0.00035616,15]
[367044703,1750635060599,-490.0,0.00035616,15]
[367044704,1750635060608,-1720.46,0.00035616,15]
[367044705,1750635060618,-490.0,0.00035616,15]
[367044706,1750635060627,-2622.45,0.00035616,15]
[367044707,1750635060637,-490.0,0.00035616,15]
[367044708,1750635060647,-588.56,0.00035616,15]
[367044709,1750635060656,-925.54,0.00035616,15]
[367044710,1750635060666,-490.0,0.00035616,15]
[367044711,1750635060675,-490.0,0.00035616,15]
[367044712,1750635060685,-490.0,0.00035616,15]
[367044713,1750635060694,-490.0,0.00035616,15]
[367044714,1750635060703,-490.0,0.00035616,15]
[367044715,1750635060712,-2106.9,0.00035616,15]
[367044716,1750635060722,-490.0,0.00035616,15]
[367044717,1750635060731,-490.0,0.00035616,15]
[367044718,1750635060740,-490.0,0.00035616,15]
[367044719,1750635060750,-1187.51,0.00035616,15]
[367044720,1750635060762,-780.18,0.00035616,15]
[367044721,1750635060772,-490.0,0.00035616,15]
[367044722,1750635060783,-1529.53,0.00035616,15]
[367044723,1750635060792,-716.22,0.00035616,15]
[367044724,1750635060802,-750.69,0.00035616,15]
[367044725,1750635060811,-490.0,0.00035616,15]
[367044726,1750635060824,-1932.67,0.00035616,15]
[367044727,1750635060834,-300.0,0.00035616,4]
[367044728,1750635060843,-490.0,0.00035616,15]
[367044729,1750635060853,-490.0,0.00035616,15]
[367044730,1750635060862,-490.0,0.00035616,15]
[367044731,1750635060872,-2117.26,0.00035616,15]
[367044732,1750635060881,-778.48,0.00035616,15]
[367044733,1750635060891,-490.0,0.00035616,15]
[367044734,1750635060900,-1874.09,0.00035616,15]
[367044735,1750635060910,-490.0,0.00035616,15]
[367044736,1750635060920,-611.53,0.00035616,15]
[367044737,1750635060930,-875.39,0.00035616,15]
[367044738,1750635060939,-1236.89,0.00035616,15]
[367044739,1750635060948,-490.0,0.00035616,15]
[367044740,1750635060957,-1049.01,0.00035616,15]
[367044741,1750635060967,-490.0,0.00035616,15]
[367044742,1750635061058,-490.0,0.00035616,15]
[367044743,1750635061069,-606.47,0.00035616,15]
[367044744,1750635061079,-1138.21,0.00035616,15]
[367044745,1750635061088,-490.0,0.00035616,15]
[367044746,1750635061097,-490.0,0.00035616,15]
[367044747,1750635061106,-1074.12,0.00035616,15]
[367044748,1750635061115,-490.0,0.00035616,15]
[367044749,1750635061125,-1524.71,0.00035616,15]
[367044750,1750635061134,-490.0,0.00035616,15]
[367044751,1750635061143,-490.0,0.00035616,15]
[367044752,1750635061152,-490.0,0.00035616,15]
[367044753,1750635061161,-490.0,0.00035616,15]
[367044754,1750635061170,-678.5,0.00035616,15]
[367044755,1750635061179,-490.0,0.00035616,15]
[367044756,1750635061188,-490.0,0.00035616,15]
[367044757,1750635061197,-262.46304438,0.00035616,15]
[367044758,1750635061206,-874.53,0.00035616,15]
[367044759,1750635061215,-1377.62,0.00035616,15]
[367044760,1750635061225,-490.0,0.00035616,15]
[367044761,1750635061234,-490.0,0.00035616,15]
[367044762,1750635061243,-1330.31,0.00035616,15]
[367044763,1750635061253,-490.0,0.00035616,15]
[367044764,1750635061262,-1079.75,0.00035616,15]
[367044765,1750635061271,-490.0,0.00035616,15]
[367044766,1750635061281,-1764.5,0.00035616,15]
[367044767,1750635061290,-490.0,0.00035616,15]
[367044768,1750635061299,-820.67,0.00035616,15]
[367044769,1750635061309,-490.0,0.00035616,15]
[367044770,1750635061319,-679.36,0.00035616,15]
[367044771,1750635061328,-160.0,0.00035616,15]
[367044772,1750635061337,-490.0,0.00035616,15]
[367044773,1750635061347,-1776.51,0.00035616,15]
[367044774,1750635061356,-490.0,0.00035616,15]
[367044775,1750635061367,-1283.45,0.00035616,15]
[367044776,1750635061376,-543.38,0.00035616,15]
[367044777,1750635061386,-490.0,0.00035616,15]
[367044778,1750635061395,-490.0,0.00035616,15]
[367044779,1750635061406,-1433.86,0.00035616,15]
[367044780,1750635061417,-786.82,0.00035616,15]
[367044781,1750635061426,-1439.02,0.00035616,15]
[367044782,1750635061436,-2812.17,0.00035616,15]
[367044783,1750635061446,-490.0,0.00035616,15]
[367044784,1750635061455,-490.0,0.00035616,15]
[367044785,1750635061464,-1368.82,0.00035616,15]
[367044786,1750635061474,-719.91,0.00035616,15]
[367044787,1750635061483,-490.0,0.00035616,15]
[367044788,1750635061493,-567.75,0.00035616,15]
[367044789,1750635061502,-490.0,0.00035616,15]
[367044790,1750635061511,-490.0,0.00035616,15]
[367044791,1750635061521,-1640.48,0.00035616,15]
[367044792,1750635061532,-490.0,0.00035616,15]
[367044793,1750635061542,-490.0,0.00035616,15]
[367044794,1750635061551,-490.0,0.00035616,15]
[367044795,1750635061561,-857.36,0.00035616,15]
[367044796,1750635061572,-546.51,0.00035616,15]
[367044797,1750635061581,-546.51,0.00035616,15]
[367044798,1750635061590,-546.51,0.00035616,15]
[367044799,1750635061599,-546.51,0.00035616,15]
[367044800,1750635061610,-546.51,0.00035616,15]
[367044801,1750635061621,-482.24888601,0.00035616,15]
[367044802,1750635061630,-546.51,0.00035616,15]
[367044803,1750635061639,-546.51,0.00035616,15]
[367044804,1750635061649,-1073.59,0.00035616,15]
[367044805,1750635061658,-546.51,0.00035616,15]
[367044806,1750635061668,-546.51,0.00035616,15]
[367044807,1750635061677,-490.0,0.00035616,15]
[367044808,1750635061686,-546.51,0.00035616,15]
[367044809,1750635061696,-546.51,0.00035616,15]
[367044810,1750635061705,-546.51,0.00035616,15]
[367044811,1750635061714,-546.51,0.00035616,15]
[367044812,1750635061725,-546.51,0.00035616,15]
[367044813,1750635061734,-490.0,0.00035616,15]
[367044814,1750635061744,-546.51,0.00035616,15]
[367044815,1750635061753,-490.0,0.00035616,15]
[367044816,1750635061763,-526.8,0.00035616,15]
[367044817,1750635061772,-490.0,0.00035616,15]
[367044818,1750635061781,-755.71,0.00035616,15]
[367044819,1750635061790,-490.0,0.00035616,15]
[367044820,1750635061800,-681.58,0.00035616,15]
[367044821,1750635061809,-1179.92,0.00035616,15]
[367044822,1750635061820,-506.43015456,0.00035616,15]
[367044823,1750635061830,-490.0,0.00035616,15]
[367044824,1750635061840,-681.97,0.00035616,15]
[367044825,1750635061849,-491.51319247,0.00035616,15]
[367044826,1750635061859,-1510.37,0.00035616,15]
[367044827,1750635061868,-195.4,0.00035616,15]
[367044828,1750635061877,-490.0,0.00035616,15]
[367044829,1750635061886,-414.33757556,0.00035616,15]
[367044830,1750635061896,-490.0,0.00035616,15]
[367044831,1750635061906,-1105.08,0.00035616,15]
[367044832,1750635061915,-490.0,0.00035616,15]
[367044833,1750635061924,-1729.52,0.00035616,15]
[367044834,1750635061934,-490.0,0.00035616,15]
[367044835,1750635061943,-490.0,0.00035616,15]
[367044836,1750635061952,-490.0,0.00035616,15]
[367044837,1750635061961,-490.0,0.00035616,15]
[367044838,1750635061971,-490.0,0.00035616,15]
[367044839,1750635061980,-490.0,0.00035616,15]
[367044840,1750635061989,-490.0,0.00035616,15]
[367044841,1750635061999,-490.0,0.00035616,15]
[367044842,1750635062009,-490.0,0.00035616,15]
[367044843,1750635062019,-490.0,0.00035616,15]
[367044844,1750635062028,-1662.46,0.00035616,15]
[367044845,1750635062037,-1822.15,0.00035616,15]
[367044846,1750635062047,-825.98,0.00035616,15]
[367044847,1750635062057,-490.0,0.00035616,15]
[367044848,1750635062066,-2158.52,0.00035616,15]
[367044849,1750635062079,-490.0,0.00035616,15]
[367044850,1750635062088,-490.0,0.00035616,15]
[367044851,1750635062097,-490.0,0.00035616,15]
[367044852,1750635062106,-490.0,0.00035616,15]
[367044853,1750635062117,-1446.56,0.00035616,15]
[367044854,1750635062126,-490.0,0.00035616,15]
[367044855,1750635062135,-490.0,0.00035616,15]
[367044856,1750635062144,-490.0,0.00035616,15]
[367044857,1750635062154,-490.0,0.00035616,15]
[367044858,1750635062163,-1181.02,0.00035616,15]
[367044859,1750635062172,-1133.31,0.00035616,15]
[367044860,1750635062181,-931.38,0.00035616,15]
[367044861,1750635062190,-490.0,0.00035616,15]
[367044862,1750635062200,-686.15,0.00035616,15]
[367044863,1750635062209,-490.0,0.00035616,15]
[367044864,1750635062218,-490.0,0.00035616,15]
[367044865,1750635062227,-625.28,0.00035616,15]
[367044866,1750635062237,-490.0,0.00035616,15]
[367044867,1750635062247,-1727.13,0.00035616,15]
[367044868,1750635062257,-498.75,0.00035616,15]
[367044869,1750635062267,-490.0,0.00035616,15]
[367044870,1750635062279,-490.0,0.00035616,15]
[367044871,1750635062298,-490.0,0.00035616,15]
[367044872,1750635062308,-490.0,0.00035616,15]
[367044873,1750635062317,-490.0,0.00035616,15]
[367044874,1750635062327,-490.0,0.00035616,15]
[367044875,1750635062336,-1029.99,0.00035616,15]
[367044876,1750635062346,-500.0,0.00035616,15]
[367044877,1750635062355,-500.0,0.00035616,15]
[367044878,1750635062364,-500.0,0.00035616,15]
[367044879,1750635062374,-500.0,0.00035616,2]
[367044880,1750635062383,-500.0,0.00035616,15]
[367044881,1750635062392,-490.0,0.00035616,15]
[367044882,1750635062401,-500.0,0.00035616,15]
[367044883,1750635062411,-500.0,0.00035616,15]
[367044884,1750635062420,-500.0,0.00035616,15]
[367044885,1750635062430,-500.0,0.00035616,15]
[367044886,1750635062439,-490.0,0.00035616,15]
[367044887,1750635062449,-500.0,0.00035616,15]
[367044888,1750635062459,-500.0,0.00035616,15]
[367044889,1750635062468,-500.0,0.00035616,15]
[367044890,1750635062478,-490.0,0.00035616,15]
[367044891,1750635062487,-686.06,0.00035616,15]
[367044892,1750635062496,-500.0,0.00035616,15]
[367044893,1750635062506,-500.0,0.00035616,15]
[367044894,1750635062515,-490.0,0.00035616,15]
[367044895,1750635062527,-500.0,0.00035616,15]
[367044896,1750635062543,-490.0,0.00035616,15]
[367044897,1750635062553,-1969.17,0.00035616,15]
[367044898,1750635062562,-490.0,0.00035616,15]
[367044899,1750635062573,-882.75,0.00035616,15]
[367044900,1750635062582,-500.0,0.00035616,15]
[367044901,1750635062591,-490.0,0.00035616,15]
[367044902,1750635062601,-500.0,0.00035616,15]
[367044903,1750635062611,-500.0,0.00035616,15]
[367044904,1750635062620,-494.31,0.00035616,15]
[367044905,1750635062630,-490.0,0.00035616,15]
[367044906,1750635062640,-490.0,0.00035616,15]
[367044907,1750635062649,-1520.57,0.00035616,15]
[367044908,1750635062659,-920.05,0.00035616,15]
[367044909,1750635062668,-490.0,0.00035616,15]
[367044910,1750635062677,-675.46,0.00035616,15]
[367044911,1750635062687,-490.0,0.00035616,15]
[367044912,1750635062697,-490.0,0.00035616,15]
[367044913,1750635062706,-490.0,0.00035616,15]
[367044914,1750635062716,-675.37,0.00035616,15]
[367044915,1750635062726,-531.56,0.00035616,15]
[367044916,1750635062735,-490.0,0.00035616,15]
[367044917,1750635062744,-509.42,0.00035616,15]
[367044918,1750635062754,-490.0,0.00035616,15]
[367044919,1750635062763,-490.0,0.00035616,15]
[367044920,1750635062773,-490.0,0.00035616,15]
[367044921,1750635062782,-2112.53,0.00035616,15]
[367044922,1750635062792,-1171.73,0.00035616,15]
[367044923,1750635062801,-490.0,0.00035616,15]
[367044924,1750635062810,-1387.16,0.00035616,15]
[367044925,1750635062821,-490.0,0.00035616,15]
[367044926,1750635062830,-490.0,0.00035616,15]
[367044927,1750635062839,-968.17,0.00035616,15]
[367044928,1750635062848,-1177.9,0.00035616,15]
[367044929,1750635062857,-506.63,0.00035616,15]
[367044930,1750635062867,-2815.59,0.00035616,15]
[367044931,1750635062876,-495.69,0.00035616,15]
[367044932,1750635062885,-490.0,0.00035616,15]
[367044933,1750635062894,-630.95,0.00035616,15]
[367044934,1750635062904,-490.0,0.00035616,15]
[367044935,1750635062913,-490.0,0.00035616,15]
[367044936,1750635062922,-2988.23,0.00035616,2]
[367044937,1750635062931,-490.0,0.00035616,15]
[367044938,1750635062941,-490.0,0.00035616,15]
[367044939,1750635062950,-1006.13,0.00035616,15]
[367044940,1750635062959,-490.0,0.00035616,15]
[367044941,1750635062968,-490.0,0.00035616,15]
[367044942,1750635062978,-532.69,0.00035616,15]
[367044943,1750635062987,-490.0,0.00035616,15]
[367044944,1750635062997,-399.05,0.00035616,15]
[367044945,1750635063006,-490.0,0.00035616,15]
[367044946,1750635063016,-490.0,0.00035616,15]
[367044947,1750635063025,-500.0,0.00035616,15]
[367044948,1750635063034,-500.0,0.00035616,15]
[367044949,1750635063044,-500.0,0.00035616,15]
[367044950,1750635063053,-500.0,0.00035616,15]
[367044951,1750635063063,-500.0,0.00035616,15]
[367044952,1750635063073,-500.0,0.00035616,15]
[367044953,1750635063083,-490.0,0.00035616,15]
[367044954,1750635063093,-490.0,0.00035616,15]
[367044955,1750635063102,-500.0,0.00035616,15]
[367044956,1750635063112,-500.0,0.00035616,15]
[367044957,1750635063121,-500.0,0.00035616,15]
[367044958,1750635063130,-500.0,0.00035616,15]
[367044959,1750635063140,-500.0,0.00035616,15]
[367044960,1750635063149,-741.44,0.00035616,15]
[367044961,1750635063158,-586.08,0.00035616,15]
[367044962,1750635063168,-490.0,0.00035616,15]
[367044963,1750635063178,-2530.3,0.00035616,15]
[367044964,1750635063187,-490.0,0.00035616,15]
[367044965,1750635063196,-1518.16,0.00035616,15]
[367044966,1750635063206,-490.0,0.00035616,15]
[367044967,1750635063215,-1592.37,0.00035616,15]
[367044968,1750635063225,-1302.13,0.00035616,15]
[367044969,1750635063234,-490.0,0.00035616,15]
[367044970,1750635063244,-661.06,0.00035616,15]
[367044971,1750635063254,-490.0,0.00035616,15]
[367044972,1750635063263,-490.0,0.00035616,15]
[367044973,1750635063273,-1501.17,0.00035616,15]
[367044974,1750635063283,-1821.36,0.00035616,15]
[367044975,1750635063292,-789.18,0.00035616,15]
[367044976,1750635063301,-490.0,0.00035616,15]
[367044977,1750635063311,-490.0,0.00035616,15]
[367044978,1750635063322,-490.0,0.00035616,15]
[367044979,1750635063333,-2112.16,0.00035616,15]
[367044980,1750635063342,-562.64,0.00035616,15]
[367044981,1750635063352,-2439.35,0.00035616,15]
[367044982,1750635063361,-500.0,0.00035616,15]
[367044983,1750635063371,-649.61,0.00035616,15]
[367044984,1750635063381,-490.0,0.00035616,15]
[367044985,1750635063390,-490.0,0.00035616,15]
[367044986,1750635063399,-490.0,0.00035616,15]
[367044987,1750635063409,-490.0,0.00035616,15]
[367044988,1750635063418,-407.75657292,0.00035616,15]
[367044989,1750635063427,-490.0,0.00035616,15]
[367044990,1750635063437,-1150.85,0.00035616,15]
[367044991,1750635063446,-490.0,0.00035616,15]
[367044992,1750635063456,-1731.18,0.00035616,15]
[367044993,1750635063465,-1117.22,0.00035616,15]
[367044994,1750635063475,-490.0,0.00035616,15]
[367044995,1750635063484,-490.0,0.00035616,15]
[367044996,1750635063494,-490.0,0.00035616,15]
[367044997,1750635063504,-950.58,0.00035616,15]
[367044998,1750635063513,-490.0,0.00035616,15]
[367044999,1750635063524,-490.0,0.00035616,15]
[367045000,1750635063535,-758.68,0.00035616,15]
[367045001,1750635063545,-1960.24,0.00035616,15]
[367045002,1750635063555,-500.0,0.00035616,15]
[367045003,1750635063564,-556.75,0.00035616,15]
[367045004,1750635063577,-490.0,0.00035616,15]
[367045005,1750635063588,-490.0,0.00035616,15]
[367045006,1750635063598,-490.0,0.00035616,15]
[367045007,1750635063609,-490.0,0.00035616,15]
[367045008,1750635063619,-572.41908042,0.00035616,15]
[367045009,1750635063628,-490.0,0.00035616,15]
[367045010,1750635063638,-490.0,0.00035616,15]
[367045011,1750635063647,-3401.68,0.00035616,15]
[367045012,1750635063657,-556.27,0.00035616,15]
[367045013,1750635063666,-490.0,0.00035616,15]
[367045014,1750635063676,-490.0,0.00035616,15]
[367045015,1750635063686,-490.0,0.00035616,15]
[367045016,1750635063696,-1157.9,0.00035616,15]
[367045017,1750635063705,-490.0,0.00035616,15]
[367045018,1750635063715,-812.09,0.00035616,15]
[367045019,1750635063725,-490.0,0.00035616,15]
[367045020,1750635063734,-490.0,0.00035616,15]
[367045021,1750635063744,-490.0,0.00035616,15]
[367045022,1750635063753,-490.0,0.00035616,15]
[367045023,1750635063762,-490.0,0.00035616,15]
[367045024,1750635063772,-490.0,0.00035616,15]
[367045025,1750635063782,-495.14106706,0.00035616,15]
[367045026,1750635063791,-1706.83,0.00035616,15]
[367045027,1750635063801,-490.0,0.00035616,15]
[367045028,1750635063810,-774.86,0.00035616,15]
[367045029,1750635063822,-490.0,0.00035616,15]
[367045030,1750635063831,-2713.67,0.00035616,15]
[367045031,1750635063840,-490.0,0.00035616,15]
[367045032,1750635063850,-1014.23,0.00035616,15]
[367045033,1750635063859,-490.0,0.00035616,15]
[367045034,1750635063869,-490.0,0.00035616,15]
[367045035,1750635063878,-893.47,0.00035616,15]
[367045036,1750635063887,-490.0,0.00035616,15]
[367045037,1750635063897,-697.35,0.00035616,15]